[Event "*** Titled Tuesday Blitz"]
[Site "Chess.com"]
[Date "2020.11.10"]
[Round "7"]
[White "nakajo"]
[Black "vinniethepooh"]
[Result "1-0"]
[WhiteElo "2467"]
[BlackElo "2594"]
[TimeControl "180+1"]
[EndTime "11:23:27 PST"]
[Termination "nakajo won by resignation"]

1. Nf3 {[%clk 0:03:00.6]} 1... d5 {[%clk 0:02:57.2]} 2. g3 {[%clk 0:02:57.1]}
2... c6 {[%clk 0:02:57.1]} 3. Bg2 {[%clk 0:02:57.6]} 3... Nf6 {[%clk 0:02:57.6]}
4. O-O {[%clk 0:02:58.2]} 4... g6 {[%clk 0:02:57.9]} 5. d4 {[%clk 0:02:55.5]}
5... Bg7 {[%clk 0:02:58.1]} 6. c4 {[%clk 0:02:56.1]} 6... dxc4 {[%clk 0:02:59]}
7. Na3 {[%clk 0:02:55.7]} 7... b5 {[%clk 0:02:58.8]} 8. b3 {[%clk 0:02:35.7]}
8... cxb3 {[%clk 0:02:46.4]} 9. axb3 {[%clk 0:02:36.6]} 9... O-O {[%clk
0:02:41.7]} 10. Nc2 {[%clk 0:02:33.8]} 10... Be6 {[%clk 0:02:26.1]} 11. Nb4
{[%clk 0:02:27.5]} 11... Nd5 {[%clk 0:02:00.9]} 12. Nd3 {[%clk 0:02:22.5]} 12...
Nc3 {[%clk 0:01:42.9]} 13. Qc2 {[%clk 0:02:09.5]} 13... Ne4 {[%clk 0:01:41.8]}
14. Nfe5 {[%clk 0:01:47.4]} 14... f5 {[%clk 0:01:29.6]} 15. Bb2 {[%clk
0:01:15.4]} 15... Qd5 {[%clk 0:01:11.9]} 16. Nc5 {[%clk 0:00:47.3]} 16... Rc8
{[%clk 0:00:20.3]} 17. Rfc1 {[%clk 0:00:20.5]} 17... Nd7 {[%clk 0:00:16.4]} 18.
Nxe4 {[%clk 0:00:19.3]} 18... fxe4 {[%clk 0:00:15.6]} 19. Bxe4 {[%clk
0:00:17.9]} 19... Qd6 {[%clk 0:00:16]} 20. Nxc6 {[%clk 0:00:13.7]} 20... Nb6
{[%clk 0:00:16]} 21. Ba3 {[%clk 0:00:08.5]} 21... Qd7 {[%clk 0:00:13.1]} 22.
Nxe7+ {[%clk 0:00:07.9]} 22... Kf7 {[%clk 0:00:08.8]} 23. Nxc8 {[%clk
0:00:07.9]} 23... Rxc8 {[%clk 0:00:09.7]} 24. Qd3 {[%clk 0:00:06.6]} 24... Qxd4
{[%clk 0:00:06.2]} 25. Qxd4 {[%clk 0:00:05]} 25... Bxd4 {[%clk 0:00:07.1]} 26.
Rxc8 {[%clk 0:00:05.3]} 26... Nxc8 {[%clk 0:00:07.8]} 27. Rd1 {[%clk 0:00:05.3]}
27... Bb6 {[%clk 0:00:06]} 28. Bd5 {[%clk 0:00:05.6]} 28... Bxd5 {[%clk
0:00:04.2]} 29. Rxd5 {[%clk 0:00:06.5]} 29... Ke6 {[%clk 0:00:05.1]} 30. Rxb5
{[%clk 0:00:06.3]} 30... a6 {[%clk 0:00:04.5]} 31. Rb4 {[%clk 0:00:06.1]} 31...
Kd7 {[%clk 0:00:03.9]} 32. Rc4 {[%clk 0:00:06.3]} 32... Na7 {[%clk 0:00:03.3]}
33. Bc5 {[%clk 0:00:05.7]} 33... Bxc5 {[%clk 0:00:02.2]} 34. Rxc5 {[%clk
0:00:06.6]} 34... Nb5 {[%clk 0:00:03.1]} 35. e3 {[%clk 0:00:06.8]} 35... Kd6
{[%clk 0:00:03.2]} 36. Rc4 {[%clk 0:00:07.2]} 36... Nc7 {[%clk 0:00:03.3]} 37.
Kf1 {[%clk 0:00:07.4]} 37... Nd5 {[%clk 0:00:03.7]} 38. Ke2 {[%clk 0:00:07.9]}
38... Nb6 {[%clk 0:00:04.1]} 39. Rd4+ {[%clk 0:00:07.5]} 39... Kc5 {[%clk
0:00:04.5]} 40. Rh4 {[%clk 0:00:07.7]} 40... Nd5 {[%clk 0:00:03.7]} 41. Rxh7
{[%clk 0:00:07.3]} 41... Nc3+ {[%clk 0:00:03.8]} 42. Kd3 {[%clk 0:00:07.2]}
42... Kb4 {[%clk 0:00:04.7]} 43. Rb7+ {[%clk 0:00:06.5]} 43... Nb5 {[%clk
0:00:05.3]} 44. h4 {[%clk 0:00:06.1]} 44... Kxb3 {[%clk 0:00:05.2]} 45. Rb6
{[%clk 0:00:06.5]} 45... Kb4 {[%clk 0:00:03.6]} 46. Rxa6 {[%clk 0:00:06.9]}
46... Nc7 {[%clk 0:00:03.7]} 47. Rxg6 {[%clk 0:00:07]} 47... Nd5 {[%clk
0:00:04.6]} 48. Rg5 {[%clk 0:00:06.8]} 48... Ne7 {[%clk 0:00:04.6]} 49. h5
{[%clk 0:00:07.3]} 49... Nc6 {[%clk 0:00:03.6]} 50. h6 {[%clk 0:00:07.4]} 50...
Nd8 {[%clk 0:00:04.5]} 51. h7 {[%clk 0:00:07.7]} 51... Ne6 {[%clk 0:00:05.4]}
52. Rh5 {[%clk 0:00:07.8]} 52... Ng7 {[%clk 0:00:04.6]} 53. Rh6 {[%clk
0:00:08.1]} 53... Nf5 {[%clk 0:00:05.2]} 54. Rh5 {[%clk 0:00:07.8]} 54... Ng7
{[%clk 0:00:05.1]} 55. h8=Q {[%clk 0:00:08.7]} 55... Ne8 {[%clk 0:00:04.4]} 56.
Qxe8 {[%clk 0:00:07.9]} 56... Ka3 {[%clk 0:00:04.8]} 57. Rb5 {[%clk 0:00:07.1]}
57... Ka4 {[%clk 0:00:04.7]} 58. Qc6 {[%clk 0:00:07.2]} 1-0

[Event "*** Titled Tuesday Blitz"]
[Site "Chess.com"]
[Date "2020.11.10"]
[Round "7"]
[White "ShahMatKanal"]
[Black "stepanosinovsky"]
[Result "1-0"]
[WhiteElo "2505"]
[BlackElo "2360"]
[TimeControl "180+1"]
[EndTime "11:23:27 PST"]
[Termination "ShahMatKanal won by checkmate"]

1. d4 {[%clk 0:03:00.9]} 1... Nf6 {[%clk 0:02:59.3]} 2. Nf3 {[%clk 0:02:59.6]}
2... g6 {[%clk 0:02:59.6]} 3. c4 {[%clk 0:02:59.4]} 3... Bg7 {[%clk 0:03:00.1]}
4. Nc3 {[%clk 0:03:00.1]} 4... O-O {[%clk 0:03:00.9]} 5. e4 {[%clk 0:03:00.1]}
5... d6 {[%clk 0:03:01.8]} 6. Be2 {[%clk 0:03:00.2]} 6... Nbd7 {[%clk
0:03:02.2]} 7. O-O {[%clk 0:03:00.4]} 7... e5 {[%clk 0:03:03.1]} 8. d5 {[%clk
0:03:00.7]} 8... Nc5 {[%clk 0:03:02.4]} 9. Qc2 {[%clk 0:03:01.1]} 9... a5 {[%clk
0:03:03]} 10. Bg5 {[%clk 0:03:01]} 10... h6 {[%clk 0:03:02.4]} 11. Be3 {[%clk
0:03:00.7]} 11... Ng4 {[%clk 0:03:02.5]} 12. Bxc5 {[%clk 0:03:00.8]} 12... dxc5
{[%clk 0:03:03.4]} 13. h3 {[%clk 0:03:01.2]} 13... Nf6 {[%clk 0:03:02.2]} 14.
Nxe5 {[%clk 0:03:01.6]} 14... Nxd5 {[%clk 0:02:34.1]} 15. cxd5 {[%clk
0:03:01.5]} 15... Bxe5 {[%clk 0:02:33.4]} 16. f4 {[%clk 0:03:01.7]} 16... Bd4+
{[%clk 0:02:31.4]} 17. Kh2 {[%clk 0:03:01.9]} 17... Bd7 {[%clk 0:02:13.8]} 18.
Rad1 {[%clk 0:02:51.2]} 18... h5 {[%clk 0:02:09.1]} 19. e5 {[%clk 0:02:45.5]}
19... Qh4 {[%clk 0:01:29.4]} 20. Ne4 {[%clk 0:02:33.4]} 20... Bf5 {[%clk
0:01:26.5]} 21. Bd3 {[%clk 0:02:24.4]} 21... Kg7 {[%clk 0:01:10.7]} 22. Nf6
{[%clk 0:02:19.6]} 22... Be3 {[%clk 0:00:52.6]} 23. Bxf5 {[%clk 0:01:24.5]}
23... Bxf4+ {[%clk 0:00:52]} 24. Kh1 {[%clk 0:01:24.4]} 24... Bxe5 {[%clk
0:00:38.6]} 25. Nd7 {[%clk 0:01:11.7]} 25... Bd6 {[%clk 0:00:38.6]} 26. Nxf8
{[%clk 0:01:00.5]} 26... Rxf8 {[%clk 0:00:35.3]} 27. Qc3+ {[%clk 0:00:38.5]}
27... Kg8 {[%clk 0:00:35]} 28. Bc2 {[%clk 0:00:25]} 28... Re8 {[%clk 0:00:28.3]}
29. Qf3 {[%clk 0:00:22.6]} 29... Re7 {[%clk 0:00:26.5]} 30. a4 {[%clk
0:00:19.5]} 30... Qb4 {[%clk 0:00:23.5]} 31. b3 {[%clk 0:00:11.8]} 31... Qh4
{[%clk 0:00:22.7]} 32. Qf2 {[%clk 0:00:10.4]} 32... Qg5 {[%clk 0:00:22.1]} 33.
Rde1 {[%clk 0:00:08.8]} 33... Rxe1 {[%clk 0:00:20.8]} 34. Qxe1 {[%clk
0:00:07.5]} 34... Qxd5 {[%clk 0:00:20.3]} 35. Qf2 {[%clk 0:00:05]} 35... f5
{[%clk 0:00:18]} 36. Bd1 {[%clk 0:00:04]} 36... Qe5 {[%clk 0:00:17.6]} 37. g3
{[%clk 0:00:04.4]} 37... Qd5+ {[%clk 0:00:15]} 38. Qf3 {[%clk 0:00:03.5]} 38...
Qd2 {[%clk 0:00:14.6]} 39. Be2 {[%clk 0:00:03.9]} 39... b6 {[%clk 0:00:13.8]}
40. Bc4+ {[%clk 0:00:04.3]} 40... Kg7 {[%clk 0:00:14.3]} 41. Qd5 {[%clk
0:00:05]} 41... Qe3 {[%clk 0:00:12.5]} 42. Qg8+ {[%clk 0:00:03.6]} 42... Kf6
{[%clk 0:00:11.4]} 43. Qd8+ {[%clk 0:00:02.6]} 43... Ke5 {[%clk 0:00:11.3]} 44.
Qe8+ {[%clk 0:00:02.4]} 44... Kd4 {[%clk 0:00:12]} 45. Qxe3+ {[%clk 0:00:02.9]}
45... Kxe3 {[%clk 0:00:12.9]} 46. Kg2 {[%clk 0:00:03.4]} 46... Kd2 {[%clk
0:00:12.2]} 47. Rf2+ {[%clk 0:00:03.4]} 47... Kc3 {[%clk 0:00:12.3]} 48. h4
{[%clk 0:00:04.3]} 48... c6 {[%clk 0:00:11.7]} 49. Re2 {[%clk 0:00:04.7]} 49...
b5 {[%clk 0:00:11.4]} 50. axb5 {[%clk 0:00:05.6]} 50... cxb5 {[%clk 0:00:11.9]}
51. Bxb5 {[%clk 0:00:06.5]} 51... Kxb3 {[%clk 0:00:12.4]} 52. Re6 {[%clk
0:00:07.1]} 52... Bc7 {[%clk 0:00:12.1]} 53. Rxg6 {[%clk 0:00:07.2]} 53... Kb4
{[%clk 0:00:12.6]} 54. Bc6 {[%clk 0:00:07]} 54... c4 {[%clk 0:00:12.1]} 55. Rg5
{[%clk 0:00:06.8]} 55... c3 {[%clk 0:00:11.9]} 56. Rxf5 {[%clk 0:00:07]} 56...
c2 {[%clk 0:00:12.2]} 57. Rf1 {[%clk 0:00:07.1]} 57... Kb3 {[%clk 0:00:12.3]}
58. Be4 {[%clk 0:00:05.3]} 58... Kb2 {[%clk 0:00:11.9]} 59. Rf2 {[%clk
0:00:05.7]} 59... Be5 {[%clk 0:00:10.4]} 60. Rxc2+ {[%clk 0:00:05.7]} 60... Kb3
{[%clk 0:00:11.3]} 61. Rc5 {[%clk 0:00:06.6]} 61... Bd4 {[%clk 0:00:11.2]} 62.
Rxa5 {[%clk 0:00:06.3]} 62... Kb4 {[%clk 0:00:11.4]} 63. Rxh5 {[%clk 0:00:06.1]}
63... Kc3 {[%clk 0:00:12.3]} 64. Rd5 {[%clk 0:00:06.1]} 64... Kd2 {[%clk
0:00:13.2]} 65. Rxd4+ {[%clk 0:00:06.2]} 65... Ke3 {[%clk 0:00:14.1]} 66. Ra4
{[%clk 0:00:06.7]} 66... Ke2 {[%clk 0:00:15]} 67. h5 {[%clk 0:00:07.3]} 67...
Ke1 {[%clk 0:00:15.9]} 68. h6 {[%clk 0:00:08.2]} 68... Ke2 {[%clk 0:00:16.7]}
69. h7 {[%clk 0:00:09.1]} 69... Ke1 {[%clk 0:00:17.6]} 70. h8=Q {[%clk 0:00:10]}
70... Ke2 {[%clk 0:00:18.5]} 71. Qc3 {[%clk 0:00:09.7]} 71... Kd1 {[%clk
0:00:18.4]} 72. Bf3# {[%clk 0:00:10]} 1-0

[Event "*** Titled Tuesday Blitz"]
[Site "Chess.com"]
[Date "2020.11.10"]
[Round "7"]
[White "Msb2"]
[Black "Matibar"]
[Result "0-1"]
[WhiteElo "2890"]
[BlackElo "2784"]
[TimeControl "180+1"]
[EndTime "11:23:31 PST"]
[Termination "Matibar won by checkmate"]

1. d4 {[%clk 0:03:00.9]} 1... d5 {[%clk 0:02:56.4]} 2. Nf3 {[%clk 0:03:00.8]}
2... e6 {[%clk 0:02:53.1]} 3. Bf4 {[%clk 0:03:00.3]} 3... Bd6 {[%clk 0:02:47.3]}
4. e3 {[%clk 0:03:00.6]} 4... Ne7 {[%clk 0:02:45.9]} 5. Bd3 {[%clk 0:02:59.7]}
5... b6 {[%clk 0:02:39.4]} 6. c3 {[%clk 0:02:54.9]} 6... Bxf4 {[%clk 0:02:19.6]}
7. exf4 {[%clk 0:02:42.9]} 7... Qd6 {[%clk 0:02:19.4]} 8. g3 {[%clk 0:02:41.3]}
8... c5 {[%clk 0:02:02.5]} 9. Nbd2 {[%clk 0:02:40.7]} 9... f6 {[%clk 0:01:55.5]}
10. a3 {[%clk 0:02:40]} 10... O-O {[%clk 0:01:55.5]} 11. h4 {[%clk 0:02:39.3]}
11... Ba6 {[%clk 0:01:55.3]} 12. Qe2 {[%clk 0:02:24.6]} 12... Bxd3 {[%clk
0:01:54.5]} 13. Qxd3 {[%clk 0:02:25.5]} 13... Nbc6 {[%clk 0:01:51.2]} 14. h5
{[%clk 0:02:26]} 14... e5 {[%clk 0:01:38.1]} 15. dxe5 {[%clk 0:02:19.5]} 15...
fxe5 {[%clk 0:01:38.5]} 16. Nc4 {[%clk 0:02:20]} 16... Qe6 {[%clk 0:01:30.6]}
17. Ncxe5 {[%clk 0:02:19]} 17... Nxe5 {[%clk 0:01:30.5]} 18. Nxe5 {[%clk
0:02:18.4]} 18... Nc6 {[%clk 0:01:30.6]} 19. O-O-O {[%clk 0:01:44.6]} 19... Nxe5
{[%clk 0:01:25.6]} 20. fxe5 {[%clk 0:01:41.1]} 20... Rxf2 {[%clk 0:01:14]} 21.
Qxd5 {[%clk 0:01:38.2]} 21... Re8 {[%clk 0:01:13.5]} 22. Rhe1 {[%clk 0:01:30]}
22... h6 {[%clk 0:00:52.3]} 23. c4 {[%clk 0:01:17.7]} 23... Rf5 {[%clk
0:00:46.8]} 24. g4 {[%clk 0:01:15.4]} 24... Rg5 {[%clk 0:00:46.2]} 25. Re4
{[%clk 0:01:14.5]} 25... Kh7 {[%clk 0:00:39.7]} 26. Qxe6 {[%clk 0:01:13.7]}
26... Rxe6 {[%clk 0:00:40.6]} 27. Rd5 {[%clk 0:01:14.4]} 27... g6 {[%clk
0:00:38.4]} 28. Rd7+ {[%clk 0:00:38.6]} 28... Kg8 {[%clk 0:00:37.9]} 29. hxg6
{[%clk 0:00:37.1]} 29... Rgxe5 {[%clk 0:00:24.8]} 30. Rxe5 {[%clk 0:00:28.5]}
30... Rxe5 {[%clk 0:00:25.1]} 31. Rh7 {[%clk 0:00:21.3]} 31... Re4 {[%clk
0:00:19.1]} 32. b3 {[%clk 0:00:21.7]} 32... Rxg4 {[%clk 0:00:18.2]} 33. Rxh6
{[%clk 0:00:21.8]} 33... Kg7 {[%clk 0:00:13.2]} 34. Rh7+ {[%clk 0:00:21.7]}
34... Kxg6 {[%clk 0:00:13.9]} 35. Rxa7 {[%clk 0:00:22.6]} 35... Kf5 {[%clk
0:00:14.3]} 36. Rd7 {[%clk 0:00:21.7]} 36... Ke4 {[%clk 0:00:13.7]} 37. a4
{[%clk 0:00:21.6]} 37... Rg2 {[%clk 0:00:12.6]} 38. Rd6 {[%clk 0:00:20.8]} 38...
Ke3 {[%clk 0:00:07.1]} 39. Kb1 {[%clk 0:00:20.7]} 39... Rh2 {[%clk 0:00:04.8]}
40. Kc1 {[%clk 0:00:11.4]} 40... Rg2 {[%clk 0:00:04]} 41. Kd1 {[%clk 0:00:11.5]}
41... Rb2 {[%clk 0:00:02.4]} 42. Rxb6 {[%clk 0:00:11]} 42... Kd3 {[%clk
0:00:02.9]} 43. Ke1 {[%clk 0:00:11.5]} 43... Ke3 {[%clk 0:00:03.4]} 44. Kf1
{[%clk 0:00:08.9]} 44... Kf3 {[%clk 0:00:03.1]} 45. Rf6+ {[%clk 0:00:07.5]}
45... Ke3 {[%clk 0:00:03]} 46. Re6+ {[%clk 0:00:08.4]} 46... Kd4 {[%clk
0:00:02.6]} 47. Rb6 {[%clk 0:00:06.9]} 47... Ra2 {[%clk 0:00:02.6]} 48. Rb5
{[%clk 0:00:05.7]} 48... Ra3 {[%clk 0:00:01.1]} 49. a5 {[%clk 0:00:06]} 49...
Ra2 {[%clk 0:00:01.2]} 50. Kg1 {[%clk 0:00:04.5]} 50... Rb2 {[%clk 0:00:01.6]}
51. a6 {[%clk 0:00:04.5]} 51... Ra2 {[%clk 0:00:02.2]} 52. Rb6 {[%clk
0:00:05.1]} 52... Ke3 {[%clk 0:00:02.6]} 53. b4 {[%clk 0:00:04.3]} 53... cxb4
{[%clk 0:00:03.5]} 54. Rxb4 {[%clk 0:00:04.7]} 54... Kd4 {[%clk 0:00:03.7]} 55.
Rb6 {[%clk 0:00:03.1]} 55... Kc5 {[%clk 0:00:04]} 56. Kf1 {[%clk 0:00:03.8]}
56... Kxb6 {[%clk 0:00:04]} 57. a7 {[%clk 0:00:04.7]} 57... Kxa7 {[%clk
0:00:04]} 58. c5 {[%clk 0:00:05.6]} 58... Kb7 {[%clk 0:00:04.3]} 59. c6+ {[%clk
0:00:06.5]} 59... Kxc6 {[%clk 0:00:05.2]} 60. Ke1 {[%clk 0:00:07.4]} 60... Kc5
{[%clk 0:00:05.9]} 61. Kd1 {[%clk 0:00:08.3]} 61... Kb4 {[%clk 0:00:06.7]} 62.
Kc1 {[%clk 0:00:09.2]} 62... Kb3 {[%clk 0:00:07.6]} 63. Kb1 {[%clk 0:00:10.1]}
63... Rb2+ {[%clk 0:00:08.5]} 64. Kc1 {[%clk 0:00:10.7]} 64... Re2 {[%clk
0:00:08.7]} 65. Kd1 {[%clk 0:00:11.6]} 65... Rc2 {[%clk 0:00:09.4]} 66. Ke1
{[%clk 0:00:12]} 66... Kc3 {[%clk 0:00:10.3]} 67. Kf1 {[%clk 0:00:12.9]} 67...
Kd3 {[%clk 0:00:11.2]} 68. Kg1 {[%clk 0:00:13.8]} 68... Ke3 {[%clk 0:00:11.8]}
69. Kh1 {[%clk 0:00:13.2]} 69... Rf2 {[%clk 0:00:12.3]} 70. Kg1 {[%clk
0:00:14.1]} 70... Kf3 {[%clk 0:00:12.9]} 71. Kh1 {[%clk 0:00:14.9]} 71... Kg3
{[%clk 0:00:12.9]} 72. Kg1 {[%clk 0:00:15.8]} 72... Rf3 {[%clk 0:00:13.5]} 73.
Kh1 {[%clk 0:00:14.8]} 73... Rf1# {[%clk 0:00:14]} 0-1

[Event "*** Titled Tuesday Blitz"]
[Site "Chess.com"]
[Date "2020.11.10"]
[Round "7"]
[White "Natalya_Buksa"]
[Black "German_Bazeev"]
[Result "0-1"]
[WhiteElo "2569"]
[BlackElo "2742"]
[TimeControl "180+1"]
[EndTime "11:23:33 PST"]
[Termination "German_Bazeev won by resignation"]

1. d4 {[%clk 0:03:00.9]} 1... Nf6 {[%clk 0:02:50.6]} 2. Nc3 {[%clk 0:03:00.9]}
2... d5 {[%clk 0:02:50.6]} 3. Bf4 {[%clk 0:03:00.6]} 3... c6 {[%clk 0:02:50.5]}
4. e3 {[%clk 0:03:00.5]} 4... g6 {[%clk 0:02:49.4]} 5. h4 {[%clk 0:03:00]} 5...
h5 {[%clk 0:02:49.1]} 6. Nf3 {[%clk 0:03:00.1]} 6... Bg4 {[%clk 0:02:49.6]} 7.
Be2 {[%clk 0:02:59.9]} 7... Bxf3 {[%clk 0:02:50.3]} 8. Bxf3 {[%clk 0:02:58.1]}
8... Nbd7 {[%clk 0:02:50.8]} 9. Qe2 {[%clk 0:02:45.9]} 9... e6 {[%clk
0:02:49.7]} 10. O-O-O {[%clk 0:02:42.1]} 10... Bb4 {[%clk 0:02:44.2]} 11. Nb1
{[%clk 0:02:34.8]} 11... Qa5 {[%clk 0:02:41.6]} 12. a3 {[%clk 0:02:29.9]} 12...
Be7 {[%clk 0:02:41.6]} 13. Nd2 {[%clk 0:02:26.2]} 13... b5 {[%clk 0:02:12.4]}
14. Nb3 {[%clk 0:02:15.1]} 14... Qb6 {[%clk 0:02:12.1]} 15. e4 {[%clk
0:02:15.3]} 15... a5 {[%clk 0:02:08.9]} 16. e5 {[%clk 0:01:31.8]} 16... Ng8
{[%clk 0:02:06.8]} 17. Be3 {[%clk 0:01:23.6]} 17... a4 {[%clk 0:02:04.5]} 18.
Nc5 {[%clk 0:01:22.5]} 18... Nxc5 {[%clk 0:02:03.3]} 19. dxc5 {[%clk 0:01:22.8]}
19... Bxc5 {[%clk 0:02:03.9]} 20. Bxc5 {[%clk 0:01:02.4]} 20... Qxc5 {[%clk
0:02:04.8]} 21. Rd3 {[%clk 0:01:03]} 21... b4 {[%clk 0:02:03.2]} 22. axb4 {[%clk
0:01:01.2]} 22... Qxb4 {[%clk 0:02:04.1]} 23. Qd2 {[%clk 0:00:54.2]} 23... Qxd2+
{[%clk 0:02:01.9]} 24. Kxd2 {[%clk 0:00:54.4]} 24... Ne7 {[%clk 0:02:02.4]} 25.
Ra1 {[%clk 0:00:54]} 25... Nf5 {[%clk 0:01:36.9]} 26. g3 {[%clk 0:00:53.5]}
26... O-O {[%clk 0:01:31.3]} 27. Rda3 {[%clk 0:00:53.2]} 27... Rab8 {[%clk
0:01:31.3]} 28. Kc1 {[%clk 0:00:53.1]} 28... Nd4 {[%clk 0:01:28.7]} 29. Bd1
{[%clk 0:00:53.3]} 29... c5 {[%clk 0:01:25.7]} 30. Rxa4 {[%clk 0:00:53.5]} 30...
Nc6 {[%clk 0:01:26.1]} 31. f4 {[%clk 0:00:47.6]} 31... c4 {[%clk 0:01:24.3]} 32.
c3 {[%clk 0:00:46.6]} 32... Kg7 {[%clk 0:01:18.2]} 33. R1a2 {[%clk 0:00:38.8]}
33... Ne7 {[%clk 0:01:17.6]} 34. Bc2 {[%clk 0:00:37.9]} 34... Rb7 {[%clk
0:01:04.7]} 35. Ra7 {[%clk 0:00:36.4]} 35... Rfb8 {[%clk 0:01:04.3]} 36. Rxb7
{[%clk 0:00:34.6]} 36... Rxb7 {[%clk 0:01:05.2]} 37. Ra6 {[%clk 0:00:34.8]}
37... Nf5 {[%clk 0:00:53.7]} 38. Bxf5 {[%clk 0:00:34]} 38... gxf5 {[%clk
0:00:54.6]} 39. Ra8 {[%clk 0:00:25.7]} 39... f6 {[%clk 0:00:44.8]} 40. exf6+
{[%clk 0:00:22.7]} 40... Kxf6 {[%clk 0:00:45.7]} 41. Rh8 {[%clk 0:00:22.8]}
41... Rg7 {[%clk 0:00:45.5]} 42. Rxh5 {[%clk 0:00:20.3]} 42... Rxg3 {[%clk
0:00:45.4]} 43. Rh6+ {[%clk 0:00:20.8]} 43... Kf7 {[%clk 0:00:42.9]} 44. Rh7+
{[%clk 0:00:20.6]} 44... Kg6 {[%clk 0:00:42.6]} 45. Rh8 {[%clk 0:00:20.5]} 45...
Rf3 {[%clk 0:00:35.6]} 46. h5+ {[%clk 0:00:20.8]} 46... Kf7 {[%clk 0:00:35.6]}
47. Rh7+ {[%clk 0:00:20.7]} 47... Kf6 {[%clk 0:00:35.5]} 48. Rh6+ {[%clk
0:00:21.1]} 48... Kf7 {[%clk 0:00:35.9]} 49. Rh7+ {[%clk 0:00:21.5]} 49... Ke8
{[%clk 0:00:33.5]} 50. Rh8+ {[%clk 0:00:21.1]} 50... Ke7 {[%clk 0:00:33.2]} 51.
Rh7+ {[%clk 0:00:21.5]} 51... Kd6 {[%clk 0:00:33.6]} 52. h6 {[%clk 0:00:21.7]}
52... Rxf4 {[%clk 0:00:34.1]} 53. Rg7 {[%clk 0:00:19.9]} 53... Rh4 {[%clk
0:00:34.2]} 54. h7 {[%clk 0:00:20.3]} 54... Ke5 {[%clk 0:00:33.4]} 55. Rf7
{[%clk 0:00:19.5]} 55... Rh2 {[%clk 0:00:31.5]} 56. Kd1 {[%clk 0:00:19.7]} 56...
Ke4 {[%clk 0:00:29]} 57. Ke1 {[%clk 0:00:20]} 57... e5 {[%clk 0:00:28.7]} 58.
Kf1 {[%clk 0:00:20.5]} 58... f4 {[%clk 0:00:28.4]} 59. Kg1 {[%clk 0:00:20.9]}
59... Rh6 {[%clk 0:00:27.3]} 60. Kg2 {[%clk 0:00:21.1]} 60... Ke3 {[%clk
0:00:27.1]} 61. Rd7 {[%clk 0:00:18.6]} 61... e4 {[%clk 0:00:26.5]} 62. Kg1
{[%clk 0:00:17.4]} 62... f3 {[%clk 0:00:25.8]} 63. Rf7 {[%clk 0:00:15.5]} 63...
Ke2 {[%clk 0:00:25.3]} 64. Rf8 {[%clk 0:00:04]} 64... Rxh7 {[%clk 0:00:21.8]}
65. Rf4 {[%clk 0:00:04.4]} 65... e3 {[%clk 0:00:16.7]} 66. Rf5 {[%clk
0:00:03.5]} 66... f2+ {[%clk 0:00:16.3]} 67. Kg2 {[%clk 0:00:03.9]} 67... Rg7+
{[%clk 0:00:16.6]} 68. Kh2 {[%clk 0:00:04]} 68... f1=Q {[%clk 0:00:17]} 69. Rxf1
{[%clk 0:00:02.7]} 69... Kxf1 {[%clk 0:00:17.4]} 70. b4 {[%clk 0:00:03.6]} 70...
cxb3 {[%clk 0:00:17.2]} 71. c4 {[%clk 0:00:03.6]} 71... dxc4 {[%clk 0:00:17.2]}
0-1